Cogmind - Beta 14 @@@ ROGUE MODE // 2024.11.19 @ 11:11:27 Player: Tereza Result: Destroyed by Y-45 Defender with Beam Rifle Performance ------------- Evolutions (2) 1000 Regions Visited (9) 1800 Robots Destroyed (126) 630 Value Destroyed (3970) 3970 Prototype IDs (7) 140 Alien Tech Used (0) 0 Bonus (593) 593 TOTAL SCORE: 8133 Bonus ------- High Alert Combat Kills 169 Follower Combat Kills 262 Entered Garrisons 200 Friendly Fire -38 Cogmind --------- Core Integrity 0/550 Matter 217/300 Energy 70/100 System Corruption 1% Temperature Warm (179) Movement Flying (32) Location -8/Materials Parts ------- > --- POWER (1) -------- (None) > --- PROPULSION (4) --- Improved VTOL Module Improved VTOL Module > --- UTILITY (4) ------ (None) > --- WEAPON (2) ------- (None) > --- INVENTORY (5) ---- Deuterium Engine Improved Signal Interpreter Heavy Particle Cannon Flak Cannon Grenade Launcher Peak State ------------ > --- POWER ------------ Light Nuclear Core > --- PROPULSION ------- Light Treads Advanced Treads Wheel Wheel > --- UTILITY ---------- Improved Heat Sink High-capacity Storage Unit Light Armor Plating Hacking Suite > --- WEAPON ----------- Gatling Laser Advanced Beam Cannon > --- INVENTORY -------- Light Nuclear Core Thermal Generator Sensor Array Sensor Array Improved Signal Interpreter Medium Armor Plating Hardlight Generator Hacking Suite Hacking Suite Hacking Suite System Shield Gatling Laser Gatling Laser Light Cannon Light Cannon Flak Cannon Flak Cannon Flak Cannon Grenade Launcher Rocket Launcher [Rating: 29] Favorites ----------- Power Light Nuclear Core Engine Ion Engine Power Core Light Nuclear Core Propulsion Light Treads Treads Light Treads Wheel Wheel Flight Unit Improved Flight Unit Utility High-capacity Storage Unit Device Improved Heat Sink Storage High-capacity Storage Unit Processor Improved Targeting Computer Hackware Hacking Suite Protection Improved Light Armor Plating Weapon Assault Cannon Energy Gun Gatling Laser Energy Cannon Advanced Beam Cannon Ballistic Gun Heavy Assault Rifle Ballistic Cannon Assault Cannon Launcher Rocket Launcher Build | -11 -10 -10 -9 -9 -9 -8 -8 -8 -8 ------- Run | Yrd Mat Min Mat Min Exi Min Mat Gar Mat Slots Evolved 4 | . . . 2 . . . 2 . . Power . | . . . . . . . . . . Propulsion 2 | . . . 1 . . . 1 . . Utility 2 | . . . 1 . . . 1 . . Weapon . | . . . . . . . . . . Parts Attached 79 | 4 8 1 11 1 . 8 21 10 15 Power 8 | 1 . . 1 . . 1 2 1 2 Engine 3 | 1 . . . . . . . 1 1 Core 5 | . . . 1 . . 1 2 . 1 Reactor . | . . . . . . . . . . Propulsion 31 | 2 2 . 5 1 . 2 8 3 8 Treads 22 | 2 1 . 4 1 . 2 5 3 4 Leg . | . . . . . . . . . . Wheel 5 | . 1 . 1 . . . 3 . . Hover . | . . . . . . . . . . Flight 4 | . . . . . . . . . 4 Utility 23 | 1 3 1 3 . . 1 8 3 3 Device 6 | . . . 1 . . . 3 . 2 Storage 4 | 1 2 . . . . . . . 1 Processor 1 | . . . 1 . . . . . . Hackware 2 | . . . . . . . 1 1 . Protection 10 | . 1 1 1 . . 1 4 2 . Artifact . | . . . . . . . . . . Weapon 17 | . 3 . 2 . . 4 3 3 2 Energy Gun 4 | . 1 . . . . . 2 . 1 Energy Cannon 3 | . . . . . . 1 . 1 1 Ballistic Gun 3 | . 1 . 1 . . . . 1 . Ballistic Cannon 5 | . 1 . 1 . . 2 . 1 . Launcher 2 | . . . . . . 1 1 . . Special Weapon . | . . . . . . . . . . Impact Weapon . | . . . . . . . . . . Slashing Weapon . | . . . . . . . . . . Piercing Weapon . | . . . . . . . . . . Special Melee Weapon . | . . . . . . . . . . Unidentified Prototypes 3 | . . . . . . . 1 . 2 Parts Lost 31 | . . . 1 1 . 8 8 5 8 Power 4 | . . . . . . 2 1 1 . Propulsion 14 | . . . . 1 . 2 4 2 5 Utility 9 | . . . 1 . . 2 2 2 2 Weapon 4 | . . . . . . 2 1 . 1 Highest Loss Streak 8 | . . . 1 1 . 3 3 4 8 To Critical Strikes . | . . . . . . . . . . Average Slot Usage (%) 95 | . 93 100 96 100 100 92 86 99 97 Engine 4 | . 14 14 1 . . . . 2 3 Core 6 | . . . 9 11 11 9 7 6 5 Treads 24 | . 24 14 19 24 33 32 13 29 35 Wheel 6 | . 3 14 11 8 . . 13 6 . Device 6 | . . . 3 11 11 11 12 9 8 Storage 11 | . 14 14 11 11 11 11 9 9 8 Hackware 1 | . . . . . . . 4 4 8 Protection 9 | . 8 14 11 11 11 6 7 12 8 Energy Gun 1 | . 7 . . . . . 3 2 . Energy Cannon 3 | . . . . . . 3 9 9 8 Ballistic Gun 5 | . 6 14 5 11 11 . . 3 . Ballistic Cannon 11 | . 13 14 16 11 11 16 5 2 8 Peak Build Rating 29 | 4 9 11 22 22 22 22 29 29 28 Average Rating 19 | 2 7 9 19 21 22 20 23 27 27 On Entrance 16 | . 4 9 11 22 22 22 16 29 26 Naked Turns 1 | . . . . . . . . . 1 Heaviest Build 71 | 10 53 53 57 57 57 59 67 66 71 Greatest Support 82 | 40 40 16 16 60 60 60 60 82 82 Greatest Overweight (x) 6 | 3 3 3 5 5 . 1 6 2 1 Average Overweight (x) 1 | . 1 3 4 4 . . 2 . . Largest Inventory Capacity 20 | 8 20 20 20 20 20 20 20 20 20 Average Capacity 19 | 7 15 20 20 20 20 20 20 20 19 Most Carried 20 | 8 20 20 20 20 19 19 20 20 20 Average Carried 18 | 5 14 20 19 19 19 16 18 19 19 Final Capacity 20 | 8 20 20 20 20 20 20 20 20 5 Final Carried 20 | 8 20 20 20 19 19 17 20 20 5 Class Distribution -------------------- 74% | Mutant 25% | Scavenger-Mutant Dominant Class ---------------- Mutant | -10/Materials Mutant | -10/Mines Mutant | -9/Materials Mutant | -9/Mines Mutant | -9/Exiles Mutant | -8/Mines Mutant | -8/Materials Scavenger-Mutant | -8/Garrison Scavenger-Mutant | -8/Materials Resources | -11 -10 -10 -9 -9 -9 -8 -8 -8 -8 ----------- Run | Yrd Mat Min Mat Min Exi Min Mat Gar Mat Matter Collected 2679 | 186 310 117 559 141 . 419 509 333 105 Remotely . | . . . . . . . . . . Salvage Created 3189 | . 456 40 736 192 . 274 766 600 125 Parts 216 | . 27 6 62 8 . 19 37 55 2 Haulers Intercepted 3 | . 1 . 1 . . . 1 . . Recyclers Shooed 1 | . . . 1 . . . . . . Parts Field Recycled . | . . . . . . . . . . Retrieved Matter . | . . . . . . . . . . Parts Self-Destructed . | . . . . . . . . . . Prevented . | . . . . . . . . . . Kills | -11 -10 -10 -9 -9 -9 -8 -8 -8 -8 ------- Run | Yrd Mat Min Mat Min Exi Min Mat Gar Mat Combat Hostiles Destroyed 104 | . 14 3 22 7 . 14 16 25 3 Guns 31 | . 6 3 4 2 . 1 4 11 . Cannons 70 | . 8 . 18 5 . 10 12 14 3 AOE 3 | . . . . . . 3 . . . Classes Destroyed 13 | . 5 . 4 1 . 3 . . . Worker 3 | . . . . . . 3 . . . Builder 2 | . . . 1 . . . 1 . . Hauler 3 | . 1 . 1 . . . 1 . . Recycler 4 | . . . 2 . . . 1 . 1 Mechanic 1 | . . . 1 . . . . . . Operator 5 | . 1 . 3 . . . 1 . . Watcher 4 | . 3 . . . . . 1 . . Swarmer 48 | . 6 3 10 3 . 5 2 17 2 Grunt 36 | . 8 . 6 3 . 6 10 2 1 Brawler 1 | . . . . 1 . . . . . Duelist 2 | . . . . . . 2 . . . Sentry 15 | . . . 6 . . . 3 6 . Hunter 2 | . . . . . . 1 1 . . Best Kill Streak 18 | . 3 3 18 2 . 4 5 6 4 Combat Bots Only 7 | . 3 3 7 2 . 4 3 6 3 Max Kills in Single Turn 3 | . 1 1 2 1 . 3 2 2 2 Gunslinging . | . . . . . . . . . . Exploded 3 | . . . . . . 3 . . . Melee . | . . . . . . . . . . Uniques/NPCs Destroyed . | . . . . . . . . . . Combat | -11 -10 -10 -9 -9 -9 -8 -8 -8 -8 -------- Run | Yrd Mat Min Mat Min Exi Min Mat Gar Mat Hostile Shots Fired 644 | . 63 16 94 27 . 131 101 101 111 Missed 162 | . 19 6 19 8 . 43 20 25 22 Damage Taken 5775 | . 411 78 798 198 . 1255 1019 807 1209 Core 849 | . 69 8 98 19 . 99 234 57 265 Absorbed by Shields 232 | . . . . . . . 232 . . Core Remaining (%) 71 | 100 . 69 . . . 46 . . . Volleys Fired 338 | . 47 5 54 17 . 70 62 70 13 Largest 2 | . 2 2 2 2 . 2 2 2 2 Hottest 150 | . 75 55 79 67 . 112 148 148 150 Shots Fired 649 | . 94 10 104 34 . 127 113 140 27 Gun 159 | . 47 5 11 17 . 8 12 58 1 Cannon 489 | . 47 5 93 17 . 118 101 82 26 Launcher 1 | . . . . . . 1 . . . Special . | . . . . . . . . . . Kinetic 428 | . 67 10 104 34 . 112 39 50 12 Thermal 220 | . 27 . . . . 14 74 90 15 Explosive 1 | . . . . . . 1 . . . Electromagnetic . | . . . . . . . . . . Robot Hit Streak 15 | . 11 3 9 7 . 9 9 15 5 Robot Miss Streak 7 | . 6 4 3 4 . 4 3 5 7 Penetration Max . | . . . . . . . . . . Secondary Targets . | . . . . . . . . . . Shots Hit Robots 375 | . 54 3 62 18 . 81 70 69 18 Core Hits 191 | . 25 3 33 10 . 29 35 36 20 Critical Kills 1 | . . . . . . . 1 . . Critical Parts Destroyed . | . . . . . . . . . . Critical Strikes 5 | . . . 1 . . 3 1 . . Meltdown 1 | . . . . . . . 1 . . Blast 4 | . . . 1 . . 3 . . . Melee Attacks . | . . . . . . . . . . Impact . | . . . . . . . . . . Slashing . | . . . . . . . . . . Piercing . | . . . . . . . . . . Sneak Attacks . | . . . . . . . . . . Combat Hostiles . | . . . . . . . . . . Follow-up Attacks . | . . . . . . . . . . Damage Inflicted 8412 | . 808 43 1420 377 . 2056 1685 1531 492 Guns 1617 | . 339 43 142 137 . 85 259 592 20 Cannons 6594 | . 469 . 1278 240 . 1779 1426 939 463 Explosions 187 | . . . . . . 187 . . . Melee . | . . . . . . . . . . Ramming 14 | . . . . . . 5 . . 9 Kinetic 5427 | . 600 43 1420 377 . 1632 616 480 259 Thermal 2784 | . 208 . . . . 232 1069 1051 224 Explosive 187 | . . . . . . 187 . . . Electromagnetic . | . . . . . . . . . . Impact . | . . . . . . . . . . Slashing . | . . . . . . . . . . Piercing . | . . . . . . . . . . Highest Corruption 1 | . . . . . . . . 1 1 Average Corruption 1 | . . . . . . . . 1 1 Corruption Purged . | . . . . . . . . . . Corruption Blocked . | . . . . . . . . . . Effects 5 | . . . . . . . . 3 2 Message Errors 3 | . . . . . . . . 3 . Data Loss (major) 1 | . . . . . . . . . 1 Misfires 1 | . . . . . . . . . 1 Overload Shots . | . . . . . . . . . . Overflow Damage 132 | . 5 . 45 7 . 32 24 19 . Projectiles 132 | . 5 . 45 7 . 32 24 19 . Explosions . | . . . . . . . . . . Melee . | . . . . . . . . . . Knockbacks 60 | . 8 . 10 1 . 20 11 1 9 Impact 1 | . . . . . . . . . 1 Kinetic 50 | . 6 . 8 1 . 19 7 1 8 Secondary 9 | . 2 . 2 . . 1 4 . . Self-Inflicted Damage . | . . . . . . . . . . Shots . | . . . . . . . . . . Rammed 2 | . . . . . . 1 . . 1 Targets Rammed 2 | . . . . . . 1 . . 1 Kicked . | . . . . . . . . . . Crushed . | . . . . . . . . . . Highest Temperature 342 | . 257 15 300 4 . 76 342 220 254 Average Temperature 70 | . 56 8 101 4 . 23 97 39 101 Received Heat Transfer 2339 | . 123 . 210 57 . 594 554 207 594 Effects 9 | . . . 6 . . . 1 1 1 Energy Bleed 3 | . . . 1 . . . 1 1 . Interference 5 | . . . 4 . . . . . 1 Damage (minor) 1 | . . . 1 . . . . . . Siege Activations . | . . . . . . . . . . Robots Corrupted . | . . . . . . . . . . Combat Hostiles . | . . . . . . . . . . Parts Fried . | . . . . . . . . . . Impact Corruptions 2 | . . . 2 . . . . . . Robots Melted 1 | . . . . . . . 1 . . Combat Hostiles . | . . . . . . . . . . Parts Melted 6 | . 1 . . . . . 2 2 1 Heat Transferred 4775 | . 450 . . . . 407 1993 1592 333 Parts Sabotaged . | . . . . . . . . . . Parts Stolen . | . . . . . . . . . . Parts Stripped . | . . . . . . . . . . Power Chain Reactions . | . . . . . . . . . . Alert | -11 -10 -10 -9 -9 -9 -8 -8 -8 -8 ------- Run | Yrd Mat Min Mat Min Exi Min Mat Gar Mat Peak Influence 1078 | . 255 122 380 158 . 311 306 1078 579 Initial 525 | . . 52 . 104 . . 45 143 525 Average 248 | . 118 62 228 101 . 165 151 680 519 Maximum Alert Level 3 | . 1 . 1 . . 1 1 3 2 Low Security (%) 60 | 100 84 100 38 100 . 69 82 3 . Level 1 19 | . 15 . 61 . . 30 17 12 . Level 2 12 | . . . . . . . . 34 99 Level 3 6 | . . . . . . . . 49 . Level 4 . | . . . . . . . . . . Level 5 . | . . . . . . . . . . High Security . | . . . . . . . . . . Max Security . | . . . . . . . . . . Squads Dispatched 12 | . 2 . 3 . . . 3 . 4 Investigation 5 | . 1 . . . . . 3 . 1 Extermination . | . . . . . . . . . . Reinforcement 6 | . 1 . 3 . . . . . 2 Assault . | . . . . . . . . . . Garrison 1 | . . . . . . . . . 1 Intercept . | . . . . . . . . . . Searches Triggered . | . . . . . . . . . . Construction Impeded 1 | . . . . . . . . . 1 Haulers Reinforced . | . . . . . . . . . . Active Scanning Responses . | . . . . . . . . . . Cargo Convoy Interrupts . | . . . . . . . . . . Stealth | -11 -10 -10 -9 -9 -9 -8 -8 -8 -8 --------- Run | Yrd Mat Min Mat Min Exi Min Mat Gar Mat Distress Signals 4 | . 1 . 1 . . . . . 2 Communications Jammed . | . . . . . . . . . . Distress Signals . | . . . . . . . . . . Times Spotted 155 | . 20 3 29 11 . 22 23 28 19 Peak Tracking Total 11 | . 3 3 5 3 . 4 5 4 11 Tactical Retreats 13 | . 1 . . 1 . 5 2 4 . Traps | -11 -10 -10 -9 -9 -9 -8 -8 -8 -8 ------- Run | Yrd Mat Min Mat Min Exi Min Mat Gar Mat Traps Triggered 9 | . 1 . . . . . 2 5 1 Indirectly . | . . . . . . . . . . Trap Hack Attempts . | . . . . . . . . . . Triggered . | . . . . . . . . . . Disarmed . | . . . . . . . . . . Reprogrammed . | . . . . . . . . . . Reused . | . . . . . . . . . . Traps Extracted . | . . . . . . . . . . Installed 2 | . . . . 2 . . . . . Triggered . | . . . . . . . . . . Machines | -11 -10 -10 -9 -9 -9 -8 -8 -8 -8 ---------- Run | Yrd Mat Min Mat Min Exi Min Mat Gar Mat Machines Disabled 10 | . 2 . 1 . . 2 . 5 . Max in Single Turn 1 | . 1 . 1 . . 1 . 1 . Garrison Relay 4 | . . . . . . . . 4 . Machines Repaired . | . . . . . . . . . . Machines Dismantled . | . . . . . . . . . . Machines Sabotaged . | . . . . . . . . . . Overloaded Fab Kills . | . . . . . . . . . . Hacking | -11 -10 -10 -9 -9 -9 -8 -8 -8 -8 --------- Run | Yrd Mat Min Mat Min Exi Min Mat Gar Mat Machines Accessed 20 | . 4 . 3 . 1 . 7 3 2 Terminals 18 | . 4 . 3 . . . 6 3 2 Fabricators . | . . . . . . . . . . Repair Stations . | . . . . . . . . . . Recycling Units . | . . . . . . . . . . Scanalyzers . | . . . . . . . . . . Garrison Access 1 | . . . . . . . 1 . . Total Hacks 74 | . 10 . 7 . 23 . 20 8 6 Successful 38 | . 6 . 2 . 23 . 3 1 3 Failed 36 | . 4 . 5 . . . 17 7 3 Catastrophic 5 | . . . 1 . . . 3 1 . Database Lockouts . | . . . . . . . . . . Manual 36 | . 9 1 8 . . . 16 . 2 Terminals 50 | . 10 . 7 . . . 19 8 6 Fabricators . | . . . . . . . . . . Repair Stations . | . . . . . . . . . . Recycling Units . | . . . . . . . . . . Scanalyzers . | . . . . . . . . . . Garrison Access 1 | . . . . . . . 1 . . Terminal Hacks 37 | . 6 . 2 . 23 . 2 1 3 Record 23 | . . . . . 23 . . . . Robot Analysis 8 | . 5 . 2 . . . . . 1 Prototype ID Bank 2 | . 1 . . . . . 1 . . Level Access Points 1 | . . . . . . . 1 . . Branch Access Points 1 | . . . . . . . . . 1 Alert Level 1 | . . . . . . . . . 1 Security Stations 1 | . . . . . . . . 1 . Fabricator Hacks . | . . . . . . . . . . Repair Station Hacks . | . . . . . . . . . . Recycling Unit Hacks . | . . . . . . . . . . Scanalyzer . | . . . . . . . . . . Garrison Access Hacks 1 | . . . . . . . 1 . . Unlock Access 1 | . . . . . . . 1 . . Unauthorized Hacks . | . . . . . . . . . . Terminals . | . . . . . . . . . . Fabricators . | . . . . . . . . . . Repair Stations . | . . . . . . . . . . Recycling Units . | . . . . . . . . . . Scanalyzers . | . . . . . . . . . . Garrison Access . | . . . . . . . . . . Data Cores Recovered 1 | . . . . . . . 1 . . Used 1 | . . . . . . . 1 . . Hacking Detections 16 | . 3 . 2 . . . 7 3 1 Full Trace Events 5 | . . . . . . . 3 2 . Feedback Events 1 | . . . . . . . . 1 . Corruption 1 | . . . . . . . . 1 . Feedback Blocked . | . . . . . . . . . . Robot Schematics Acquired . | . . . . . . . . . . Robots Built . | . . . . . . . . . . Authchips . | . . . . . . . . . . Time . | . . . . . . . . . . Total Robot Build Rating . | . . . . . . . . . . Part Schematics Acquired . | . . . . . . . . . . Parts Built . | . . . . . . . . . . Authchips . | . . . . . . . . . . Time . | . . . . . . . . . . Total Part Build Rating . | . . . . . . . . . . Parts Repaired . | . . . . . . . . . . Time . | . . . . . . . . . . Parts Recycled . | . . . . . . . . . . Recycled Matter . | . . . . . . . . . . Retrieved Matter . | . . . . . . . . . . Retrieved Components . | . . . . . . . . . . Parts Scanalyzed . | . . . . . . . . . . Part Schematics Acquired . | . . . . . . . . . . Parts Damaged . | . . . . . . . . . . Bothacking | -11 -10 -10 -9 -9 -9 -8 -8 -8 -8 ------------ Run | Yrd Mat Min Mat Min Exi Min Mat Gar Mat Used RIF Installer . | . . . . . . . . . . Robots Hacked . | . . . . . . . . . . Non-combat . | . . . . . . . . . . Combat . | . . . . . . . . . . Robot Hacks Applied . | . . . . . . . . . . Relay Couplers Released 14 | . . . . . . . . 14 . Machine Destruction 14 | . . . . . . . . 14 . Fabnet Peak Effective % . | . . . . . . . . . . Robots Rewired 3 | . . . . . . . . 3 . Allies Hacked . | . . . . . . . . . . Hacks Repelled . | . . . . . . . . . . Allies | -11 -10 -10 -9 -9 -9 -8 -8 -8 -8 -------- Run | Yrd Mat Min Mat Min Exi Min Mat Gar Mat Total Allies 6 | . . . . 3 . . . 3 . Largest Group 3 | . . . . 3 1 . . 3 3 Highest-Rated Group 87 | . . . . 72 31 . . 87 87 Highest-Rated Ally 31 | . . . . 31 31 . . 31 31 Total Orders . | . . . . . . . . . . Ally Attacks 43 | . . . . 10 . . . 9 24 Total Damage 726 | . . . . 103 . . . 127 496 Kills 10 | . . . . 3 . . . 1 6 Allies Corrupted . | . . . . . . . . . . Allies Melted . | . . . . . . . . . . Intel | -11 -10 -10 -9 -9 -9 -8 -8 -8 -8 ------- Run | Yrd Mat Min Mat Min Exi Min Mat Gar Mat Robot Analysis Total 8 | . 5 . 2 . . . . . 1 Derelict Logs Recovered 4 | . . 2 . 2 . . . . . Drone Launches . | . . . . . . . . . . Drone Recoveries . | . . . . . . . . . . Exploration | -11 -10 -10 -9 -9 -9 -8 -8 -8 -8 ------------- Run | Yrd Mat Min Mat Min Exi Min Mat Gar Mat Turns Passed 8521 | 67 1250 774 1200 1043 202 1132 1013 1185 655 Spaces Moved 4726 | 36 668 508 621 615 127 554 571 656 370 Core 13 | 12 . . . . . . . . 1 Treads 2104 | 24 444 . . 123 127 554 55 409 368 Legs . | . . . . . . . . . . Wheels 2608 | . 224 508 621 492 . . 516 247 . Hover . | . . . . . . . . . . Flight 1 | . . . . . . . . . 1 Fastest Speed 35 | 50 145 145 145 155 160 160 110 110 35 Average Speed 149 | 151 156 145 150 156 160 162 127 138 156 Slowest Speed 240 | 200 240 145 155 160 160 240 240 156 240 Overloaded Moves . | . . . . . . . . . . Propulsion Burnouts . | . . . . . . . . . . Robots Hopped . | . . . . . . . . . . Cave-ins Triggered . | . . . . . . . . . . Exploration Rate (%) 64 | 5 97 97 47 99 48 92 44 77 35 Regions Visited 9 Branch Regions 4 Pre-discovered Areas 1 | . . . . . 1 . . . . Known Exits Taken 1 | . . . . . . . 1 . . Unknown Exits Taken 7 | 1 1 1 1 1 1 1 . . . Scrap Searched 7 | . . 2 . 4 . 1 . . . Spaces Dug 2 | . . . . . . . 1 1 . Terrain Destroyed 57 | . . . 4 4 . 32 8 3 6 Melee . | . . . . . . . . . . Projectile 48 | . . . 4 4 . 23 8 3 6 AOE 9 | . . . . . . 9 . . . Terrain Rammed . | . . . . . . . . . . Walls Destroyed . | . . . . . . . . . . Machines Disabled . | . . . . . . . . . . Actions | -11 -10 -10 -9 -9 -9 -8 -8 -8 -8 --------- Run | Yrd Mat Min Mat Min Exi Min Mat Gar Mat Total 5583 | 47 783 536 798 666 126 659 752 793 423 Wait 246 | . 33 20 70 30 . 23 54 4 12 Move 4717 | 35 667 507 620 614 126 553 570 655 370 Hop . | . . . . . . . . . . Pick Up 90 | 8 18 1 19 1 . 4 26 11 2 Fast Attach 27 | 4 4 . 3 . . . 9 2 5 Attach 26 | . 1 . 2 1 . 6 9 3 4 Detach 1 | . 1 . . . . . . . . Swap 26 | . 3 1 6 . . 2 3 5 6 Drop 75 | . 9 2 24 1 . . 19 10 10 Fire 338 | . 47 5 54 17 . 70 62 70 13 Melee . | . . . . . . . . . . Ram . | . . . . . . . . . . Kick . | . . . . . . . . . . Crush 2 | . . . . . . 1 . . 1 Escape Stasis 24 | . . . . . . . . 24 . Rewire 9 | . . . . . . . . 9 . Trap 2 | . . . . 2 . . . . . Miscellaneous . | . . . . . . . . . . Route ------- -11/Scrapyard -10/Materials (discovered 4 exits: *Mat x3 / *Min) -10/Mines (discovered 2 exits: *Mat x2) -9/Materials (discovered 2 exits: *Mat / [*Min]) -9/Mines (discovered 3 exits: *Mat x2 / *Exi) -9/Exiles -8/Mines (discovered 2 exits: *Mat x2) -8/Materials (discovered 4 exits: *Fac x3 / Gar) -8/Garrison (discovered 3 exits: *Mat x3) -8/Materials (discovered 1 exit: *Fac) History --------- Turn | Location | Event 18 | -11/Scrapyard | Discovered new exit (range 16) 68 | -11/Scrapyard | Entered Materials 314 | -10/Materials | Build established: Mutant 370 | -10/Materials | Discovered new exit (range 15) 661 | -10/Materials | Discovered new exit (range 16) 690 | -10/Materials | Discovered new exit (range 13) 1060 | -10/Materials | Discovered new exit (range 6) 1318 | -10/Materials | Entered Mines 1442 | -10/Mines | Assembled infested the area 1447 | -10/Mines | Assisted by a Guerilla fighting off Assembled 1823 | -10/Mines | Discovered new exit (range 8) 1958 | -10/Mines | Learned Materials terminal intel 1968 | -10/Mines | Discovered new exit (range 12) 2031 | -10/Mines | Learned Materials non-interactive machine intel 2092 | -10/Mines | Entered Materials 2092 | -9/Materials | Evolved 2 slots: Propulsion x1, Utility x1 2093 | -9/Materials | Loaded intel: 41 non-interactive machine locations 2094 | -9/Materials | Loaded intel: 12 terminal locations 2584 | -9/Materials | Destroyed 7 combat bots 2939 | -9/Materials | Discovered new exit (range 12) 3226 | -9/Materials | Discovered new exit (range 16) 3292 | -9/Materials | Entered Mines 3368 | -9/Mines | Deemed a non-threat by the Exiles lab entrance 3368 | -9/Mines | Discovered new exit (range 5) 3483 | -9/Mines | Received a Mining Laser from a helpful Derelict 3564 | -9/Mines | Learned 4 Materials zone layouts 3625 | -9/Mines | Received a Rocket Launcher from a helpful Derelict 3929 | -9/Mines | Discovered new exit (range 13) 3964 | -9/Mines | Found a hidden stash of uninstalled traps 4077 | -9/Mines | Discovered new exit (range 11) 4335 | -9/Mines | Entered Exiles 4335 | -9/Exiles | Accompanied by 1 ally 4365 | -9/Exiles | Led the pair of lost Derelicts to a safe place 4374 | -9/Exiles | Met 8R-AWN 4401 | -9/Exiles | Met EX-HEX 4465 | -9/Exiles | Met EX-DEC 4475 | -9/Exiles | Learned location of Zion (-6) 4518 | -9/Exiles | Discovered new exit (range 14) 4537 | -9/Exiles | Entered Mines 4666 | -8/Mines | Lost 3 parts (1n1u1w) 4922 | -8/Mines | Discovered new exit (range 9) 5025 | -8/Mines | Discovered new exit (range 8) 5484 | -8/Mines | Core integrity fell below 50% 5669 | -8/Mines | Entered Materials 5669 | -8/Materials | Evolved 2 slots: Propulsion x1, Utility x1 5670 | -8/Materials | Identified exit to Factory 5834 | -8/Materials | Lost 3 parts (2n1u) 6646 | -8/Materials | Build established: Scavenger-Mutant 6680 | -8/Materials | Identified exit to Garrison 6682 | -8/Materials | Entered Garrison 6759 | -8/Garrison | Garrison Relay disabled 6820 | -8/Garrison | Triggered checkpoint 6844 | -8/Garrison | Discovered new exit (range 12) 6858 | -8/Garrison | Triggered checkpoint 6877 | -8/Garrison | Garrison Relay disabled 6994 | -8/Garrison | Discovered new exit (range 13) 7036 | -8/Garrison | Triggered checkpoint 7059 | -8/Garrison | Garrison Relay disabled 7078 | -8/Garrison | Core integrity fell below 50% 7124 | -8/Garrison | Lost 4 parts (2n2u) 7194 | -8/Garrison | Learned Materials security intel 7263 | -8/Garrison | Triggered checkpoint 7512 | -8/Garrison | Triggered checkpoint 7571 | -8/Garrison | Discovered new exit (range 8) 7715 | -8/Garrison | Garrison Relay disabled 7867 | -8/Garrison | Entered Materials 7867 | -8/Materials | Accompanied by 3 allies 8356 | -8/Materials | Discovered exit to Factory (range 16) 8476 | -8/Materials | Garrison activated, responded to threat 8518 | -8/Materials | Core integrity fell below 20% 8519 | -8/Materials | Released all parts (7) 8522 | -8/Materials | Destroyed by Y-45 Defender with Beam Rifle Last Messages --------------- 08511_ Beamcaster temporarily disabled. 08512_ K-01 Serf collects debris. 08512_ Critical hit (Burn: +37). 08515_ Slug penetrates Wall. 08516_ K-01 Serf collects debris. 08517_ Lgt. Treads destroyed. 08518_ A-02 Transporter destroyed. 08519_ Lgt. Treads destroyed. 08519_ K-01 Serf collects debris. 08519_ Critical hit (Burn: +37). 08519_ Released Lgt. Treads. 08519_ Released Beamcaster. 08519_ Released Hcp. Storage Unit. 08519_ Released Hacking Suite. 08519_ Released Imp. Deuterium Engine. 08519_ Released Thermal Generator. 08520_ Acquired Prototype Flight Unit. 08520_ Identified Imp. VTOL Module. 08522_ Acquired Imp. VTOL Module. 08522_ K-01 Serf collects debris. Map ----- +----------------------------------------------------+ | ?????????????????????????????????????????????????? | | ?????????????????????????????????????????????????? | | ?????????????????????????????????????????????????? | | ?????????????????????????????????????????????????? | | ?????????????????????????????????????????????????? | | ?????????????????????????????????????????????????? | | ?????????????????????????????????????????????????? | | ?????????????????????????????????????????????????? | | ?????????????????????????????????????????????????? | | ?????????????????????????????????????????????????? | | ?????????????????????????????????????????????????? | | ?????????????????????????????????????????????????? | | ?????????????????????????????????????????????????? | | ?????????????????????????????????????????????????? | | ?????????????????????????????????????????????????? | | ?????????????????????????????????????????????????? | | ?????????????????????????????????????????????????? | | ?????????????????????????????????????????????????? | | ?????????????????????????????????????????????????? | | ?????????????????????????????????????????????????? | | ?????????????????????????????????????????????????? | | ?????????????????##########??????????????????????? | | ?????????????????# #??????????????????????? | | ?????????????????# """ *#??????????????????????? | | ?????????????????# """![!#??????????????????????? | | ?????????????????# """[[@###????????????????????? | | ?????????????????# g ][ %+*??????????#??????????? | | ?????????????????# """s[[=#???????? #??????????? | | ?????????????????# "G=g!=!#???????? #??????????? | | ?????????????????# """k!gg#???????? #??????????? | | ?????????????????# Y!]!#???????? #??????????? | | ???????????????#####h############## #??????????? | | ????????????? g T%= #?#######??? | | ????????????? g " =%* #?# #??? | | ???????????? a "%" ! % #?# #??? | | ????????????#+#######"[% ! #?# #?## | | ????????????????????# """" """" #?# #?# | | ????????????????????# """" """" #?# #?# | | ????????????????????# """" """" #??# #??# | | ????????????????????# #??# #??# | | ????????????????????# ]#??# #??# | | ????????????????????# #??# #??# | | ????????????????????# ##" "###### #??# #??# | | ????????????????????# ?#"Y"?????# #??# #???? | | ????????????????????# ?#"""?????# #### ##### | | ????????????????????# ?###??????# | | ?????????????????????? ???????????# | | ??????????????????????????????????# | | ?????????????????????????????????#####+########### | | ?????????????????????????????????# T #?# | +----------------------------------------------------+ Best States ------------- Heat Dissipation 53 Energy Generation 16 Energy Capacity 290 Matter Stores 300 Matter Capacity 300 Sight Range 16 Terrain Scan Density 10 Armor Coverage 375 Evasion (%) 44 Targeting Accuracy 6 Recoil Reduction 4 Offensive Hacking 10 Item Schematics ----------------- None Robot Schematics ------------------ None Fabricated ------------ Nothing Alien Tech Used ----------------- None Achievements -------------- None Challenges ------------ None Game ------ Seed HardenedArmageddonKit Manual? 0 Play Time 00:41:50 Cumulative 118.3 hours Start 2024.11.18 @ 19:20:47 End 2024.11.19 @ 11:11:27 Sessions 3 Manual Loads 0 Difficulty Rogue Special Mode None Game No. 141 Rogue 141 Adventurer 0 Explorer 0 Win Type - Total 1 Types 1/0/0/0/0/0/0/0/0 Lore% 64 Gallery% 54 Achievement% 46 Wizard Run 0 Options --------- Layout 1 ASCII 0 Keyboard 1 Movement Numpad Keybinds 0 Fullscreen 1 Font 24/Smallcaps Map View 50x35 Zoom Use 0% Tactical HUD 1 Map Filters NONE Filters NONE Steam 1 RUN: 921667b3-6b78-4472-afbf-c2492486d1b3